{"text_format":"1","workbook":"xlsx","n_sheets":2,"sheets":["test1","test2"],"not_rendered":{"charts":0,"images":0,"macros":1,"external_links":0,"defined_names":0,"comments":0,"pivot_tables":0},"unopened":[],"bounds":{"document_bytes":16777216,"sheet_cells":100000,"rows_first":2000,"rows_last":500,"rows_between":2000,"halvings":0,"cell_chars":16384,"cell_head_chars":4096},"cells_cut":0,"cells_raw":0,"read":"whole","date_system":"1900"}

{"sheet":"test1","index":0,"n_rows":33,"n_cols":4,"rows_kept":33,"cut":false,"hidden":false,"merged":[]}
["Candidat","Corrigé","Score","rep"]
[]
[null,7,{"$f":"IF(A3=B3,1,0)","v":0},"arbalétrier"]
[null,19,0,"bracon"]
[null,20,{"$f":"IF(A5=B5,1,0)","v":0},"descente d'eau"]
[null,21,0,"appentis"]
[null,23,0,"potelet"]
[null,"10 ou 17",{"$f":"IF(OR(A8=17,A8=10),1,0)","v":0},"lisse"]
[null,29,{"$f":"IF(A9=B9,1,0)","v":0},"lisse de courronnement"]
[null,13,0,"montant de porte"]
[null,9,0,"rampant de couverture"]
[null,"17ou 10",{"$f":"IF(OR(A12=17,A12=10),1,0)","v":0},"lisse"]
[null,18,0,"chéneau"]
[null,8,0,"bretelle de couverture"]
[null,22,0,"contreventement"]
[null,1,0,"axe de faîtage"]
[null,14,0,"lierne de bardage"]
[null,27,0,"palée de stabilité"]
[null,11,0,"linteau"]
[null,"6 ou 26",{"$f":"IF(OR(A20=6,A20=26),1,0)","v":0},"poutre sablière"]
[null,25,0,"chevêtre"]
[null,28,0,"panne"]
[null,24,0,"poteau"]
[null,22,0,"contreventement"]
[null,5,0,"baïonnette"]
[null,"26 ou 6",{"$f":"IF(OR(A26=6,A26=26),1,0)","v":0},"poutre sablière"]
[null,4,0,"acrotère"]
[null,12,0,"rail de porte roulante"]
[null,15,0,"lien"]
[null,"22 ou 3",{"$f":"IF(OR(A30=22,A30=3),1,0)","v":0},"contreventement"]
[null,2,0,"poteau pan de fer"]
[null,null,{"$f":"SUM(C3:C31)","v":0},"TOTAL"]
[null,null,{"$f":"C32/29*20","v":0},"NOTE/20"]

{"sheet":"test2","index":1,"n_rows":20,"n_cols":4,"rows_kept":20,"cut":false,"hidden":false,"merged":[]}
["Candidat","Corrigé","Score","rep"]
[]
[null,1,{"$f":"IF(A3=B3,1,0)","v":0},"Poteau (HEA ou IPE)"]
[null,10,0,"Gouttière 1/2 ronde"]
[null,3,0,"Lisse filante"]
[null,14,0,"Croix de Saint-André"]
[null,12,0,"Bardage métallique à ondes verticales"]
[null,9,0,"Couvertine métallique"]
[null,15,0,"Potelet de pignon (HEA ou IPE)"]
[null,8,0,"Faîtière métallique"]
[null,6,0,"Panne (IPN ou IPE)"]
[null,2,0,"Traverse (HEA ou IPE)"]
[null,11,0,"Châssis vitré"]
[null,5,0,"Diagonale de versant"]
[null,13,0,"Lisse de bardage"]
[null,4,0,"Baïonnette"]
[null,7,0,"Chêneau en tôle pliée"]
[null,16,0,"Jarret"]
[null,null,{"$f":"SUM(C3:C18)","v":0},"TOTAL"]
[null,null,{"$f":"C19/16*20","v":0},"NOTE/20"]